Workbook

Sheet 인구현황
A1: 주민등록인구현황
D3: (2014년 12월말 기준)
A4: 동명/구분 | B4: 인 구 수 | E4: 세 대 수
B5: 계 | C5: 남 | D5: 여
A6: 증감(금년누계) | B6: -1,827 | C6: -838 | D6: -989 | E6: 621
A7: 합 계 | B7: =SUM(B8:B30) -> 239,109 | C7: =SUM(C8:C30) -> 119,322 | D7: =SUM(D8:D30) -> 119,787 | E7: =SUM(E8:E30) -> 99,955
A8: 용당1동 | B8: =SUM(C8:D8) -> 12,492 | C8: 6,279 | D8: 6,213 | E8: 6,107
A9: 용당2동 | B9: =SUM(C9:D9) -> 6,487 | C9: 3,267 | D9: 3,220 | E9: 3,203
A10: 연 동 | B10: 5,938 | C10: 2,974 | D10: 2,964 | E10: 3,031
A11: 산정동 | B11: 8,335 | C11: 4,115 | D11: 4,220 | E11: 3,383
A12: 연산동 | B12: 5,903 | C12: 2,884 | D12: 3,019 | E12: 2,106
A13: 원산동 | B13: 15,864 | C13: 7,864 | D13: 8,000 | E13: 6,284
A14: 대성동 | B14: 3,223 | C14: 1,657 | D14: 1,566 | E14: 1,613
A15: 목원동 | B15: 10,063 | C15: 5,133 | D15: 4,930 | E15: 5,264
A16: 동명동 | B16: 6,925 | C16: 3,643 | D16: 3,282 | E16: 3,424
A17: 삼학동 | B17: 6,720 | C17: 3,363 | D17: 3,357 | E17: 2,680
A18: 만호동 | B18: 4,066 | C18: 2,172 | D18: 1,894 | E18: 2,311
A19: 유달동 | B19: 6,376 | C19: 3,333 | D19: 3,043 | E19: 3,469
A20: 죽교동 | B20: 4,236 | C20: 2,192 | D20: 2,044 | E20: 2,159
A21: 북항동 | B21: 9,591 | C21: 4,765 | D21: 4,826 | E21: 3,878
A22: 용해동 | B22: 18,756 | C22: 9,312 | D22: 9,444 | E22: 7,267
A23: 이로동 | B23: 11,123 | C23: 5,528 | D23: 5,595 | E23: 4,079
A24: 상 동 | B24: 18,628 | C24: 9,009 | D24: 9,619 | E24: 7,692
A25: 하당동 | B25: 12,419 | C25: 6,339 | D25: 6,080 | E25: 5,859
A26: 신흥동 | B26: 18,133 | C26: 9,033 | D26: 9,100 | E26: 6,729
A27: 삼향동 | B27: 5,760 | C27: 2,957 | D27: 2,803 | E27: 2,341
A28: 옥암동 | B28: 11,745 | C28: 5,688 | D28: 6,057 | E28: 4,190
A29: 부흥동 | B29: =SUM(C29:D29) -> 12,344 | C29: 6,093 | D29: 6,251 | E29: 4,758
A30: 부주동 | B30: 23,982 | C30: 11,722 | D30: 12,260 | E30: 8,128
A31: 전월현황(2014.11) | B31: 239,067 | C31: 119,300 | D31: 119,767 | E31: 99,925
A32: 증감(전월대비) | B32: =B7-B31 -> 42 | C32: =C7-C31 -> 22 | D32: =D7-D31 -> 20 | E32: =E7-E31 -> 30
A33: 전년말현황(2011.12) | B33: 240,936 | C33: 120,160 | D33: 120,776 | E33: 99,334
A34: 전년말대비 증감 | B34: =B7-B33 -> -1,827 | C34: =C7-C33 -> -838 | D34: =D7-D33 -> -989 | E34: =E7-E33 -> 621
A35: ('14. 12월말) 65세이상 노인 인구수 : 30,179명(남:12,358명 여:17,821명)전월대비 증81명 ('14. 12월말) 전라남도 인구수 : 1,905,780명(전월 : 1,902,916명 증2,864명) ('14. 12월말) 전국 인구수 : 51,327,916명(전월 : 51,314,683명 증13,233명)

Sheet Sheet2

Sheet Sheet3
